bitfinex/quotes_SOLUSD_20230703
["timestamp","ask_amount","ask_price","bid_price","bid_amount"]
[1688386631100,55.0,19.391,19.378,56.195]
[1688386631301,21.818,19.388,19.381,21.824]
[1688386631614,55.0,19.387,19.381,21.824]
[1688386631807,21.82,19.386,19.381,21.824]
[1688386632700,21.82,19.386,19.38,21.825]
[1688386633000,21.823,19.384,19.379,21.826]
[1688386634110,55.0,19.385,19.379,21.826]
[1688386634319,55.0,19.386,19.379,21.826]
[1688386634621,21.819,19.387,19.379,21.826]
[1688386635906,55.0,19.386,19.379,21.826]
[1688386636103,21.822,19.384,19.379,21.826]
[1688386637799,55.0,19.386,19.379,21.826]
[1688386637800,21.822,19.385,19.379,21.826]
[1688386638005,55.0,19.386,19.379,21.826]
[1688386638607,76.82,19.386,19.379,21.826]
[1688386639308,56.161,19.391,19.379,21.826]
[1688386639514,21.814,19.391,19.379,21.826]
[1688386640218,21.814,19.391,19.379,32.66319922]
[1688386640520,21.814,19.391,19.38,10.83719922]
[1688386640723,21.814,19.391,19.383,78.004]
[1688386641613,21.814,19.391,19.383,21.822]
[1688386642132,21.812,19.393,19.383,124.334]
[1688386642309,56.138,19.399,19.383,135.17119922]
[1688386642509,21.808,19.397,19.384,65.83719922]
[1688386642712,21.808,19.397,19.389,77.978]
[1688386646222,97.7403,19.409,19.389,77.978]
[1688386646425,97.7403,19.409,19.39,106.69]
[1688386646426,21.799,19.405,19.39,106.69]
[1688386646724,56.103,19.411,19.396,77.949]
[1688386646922,21.796,19.407,19.396,77.949]
[1688386647307,56.101,19.412,19.401,77.931]
[1688386648531,21.793,19.41,19.401,77.931]
[1688386649525,56.088,19.416,19.401,77.931]
[1688386650035,21.79,19.413,19.401,77.931]
[1688386650215,21.794,19.409,19.401,77.931]
[1688386652810,21.797,19.406,19.401,21.802]
[1688386653623,21.797,19.407,19.401,21.802]
[1688386653826,21.795,19.408,19.401,21.802]
[1688386654730,56.099,19.413,19.401,21.802]
[1688386654925,75.0,19.412,19.401,21.802]
[1688386655313,20.0,19.412,19.401,21.802]
[1688386655926,21.792,19.411,19.401,21.802]
[1688386656127,56.085,19.417,19.401,21.802]
[1688386656432,21.788,19.415,19.402,30.83719922]
[1688386656743,21.788,19.415,19.405,180.306]
[1688386657123,21.788,19.415,19.405,77.913]
[1688386657529,55.0,19.414,19.405,77.913]
[1688386657930,21.786,19.416,19.405,77.913]
[1688386659826,21.79,19.412,19.405,77.913]
[1688386660341,21.79,19.413,19.405,77.913]
[1688386660632,21.79,19.412,19.405,77.913]
[1688386660822,21.79,19.413,19.405,77.913]
[1688386662325,55.0,19.415,19.405,77.913]
[1688386662522,21.789,19.413,19.405,77.913]
[1688386663033,55.0,19.415,19.405,77.913]
[1688386663248,21.787,19.416,19.405,77.913]
[1688386663419,21.785,19.417,19.405,77.913]
[1688386663741,55.0,19.416,19.405,77.913]
[1688386663933,76.786,19.416,19.405,77.913]
[1688386664419,56.074,19.421,19.405,77.913]
[1688386664820,21.784,19.418,19.405,77.913]
[1688386665935,55.0,19.417,19.405,77.913]
[1688386666139,56.078,19.42,19.405,77.913]
[1688386666326,21.784,19.418,19.405,77.913]
[1688386667040,55.0,19.417,19.405,77.913]
[1688386667239,21.789,19.414,19.405,77.913]
[1688386667546,21.79,19.412,19.405,77.913]
[1688386668426,76.79,19.413,19.405,77.913]
[1688386669541,55.0,19.413,19.405,77.913]
[1688386670234,21.788,19.414,19.405,77.913]
[1688386670433,21.788,19.415,19.405,77.913]
[1688386670634,55.0,19.414,19.405,77.913]
[1688386673642,56.083,19.418,19.405,77.913]
[1688386673643,21.787,19.415,19.405,77.913]
[1688386674842,55.0,19.414,19.405,77.913]
[1688386675150,21.79,19.413,19.405,77.913]
[1688386677550,55.0,19.412,19.405,21.797]
[1688386677748,21.793,19.41,19.405,21.797]
[1688386679451,21.793,19.41,19.389,51.57]
[1688386679642,21.798,19.405,19.395,102.447]
[1688386680150,21.801,19.403,19.398,21.805]
[1688386680533,56.111,19.408,19.398,21.805]
[1688386680839,21.799,19.404,19.398,21.805]
[1688386681028,21.799,19.405,19.398,21.805]
[1688386681646,21.801,19.402,19.391,95.8349]
[1688386681836,21.801,19.402,19.392,76.155]
[1688386682036,21.805,19.399,19.396,21.807]
[1688386682451,21.804,19.4,19.396,21.807]
[1688386682635,21.8,19.403,19.396,21.807]
[1688386682829,31.69,19.41,19.396,21.807]
[1688386683157,55.0,19.409,19.396,32.64419922]
[1688386684244,21.797,19.406,19.396,32.64419922]
[1688386687159,21.796,19.407,19.397,10.83719922]
[1688386687452,21.796,19.407,19.4,77.938]
[1688386688839,21.796,19.407,19.4,21.804]
[1688386692456,55.0,19.406,19.4,21.804]
[1688386692645,21.799,19.405,19.4,21.804]
[1688386695251,21.799,19.405,19.395,21.808]
[1688386695460,21.802,19.402,19.395,21.808]
[1688386695656,21.805,19.399,19.395,21.809]
[1688386695839,21.805,19.399,19.392,76.154]
[1688386696042,21.805,19.399,19.394,21.809]
[1688386699459,21.804,19.4,19.394,21.809]
[1688386699758,55.0,19.399,19.394,21.809]
[1688386701957,55.0,19.4,19.394,21.809]
[1688386704264,76.803,19.401,19.394,21.809]
[1688386704662,55.0,19.401,19.394,21.809]
[1688386704964,21.799,19.405,19.395,10.83719922]
[1688386705168,21.799,19.405,19.398,77.945]
[1688386706770,76.8,19.404,19.398,77.945]
[1688386707666,76.8,19.404,19.398,77.445]
[1688386708469,76.8,19.404,19.398,21.306]
[1688386712263,76.8,19.404,19.392,133.30019922]
[1688386712264,76.8,19.404,19.392,56.155]
[1688386712464,21.803,19.401,19.392,21.812]
[1688386712657,77.948,19.398,19.391,21.814]
[1688386713059,21.809,19.396,19.391,21.814]
[1688386713260,21.811,19.394,19.391,21.814]
[1688386713649,21.811,19.394,19.389,21.815]
[1688386713852,21.813,19.392,19.389,21.815]
[1688386714066,21.813,19.392,19.388,21.816]
[1688386714067,55.0,19.391,19.388,21.816]
[1688386714567,76.814,19.391,19.388,21.816]
[1688386715071,76.814,19.391,19.384,56.178]
[1688386715270,76.814,19.391,19.387,21.817]
[1688386716274,76.814,19.391,19.382,10.83719922]
[1688386716460,76.814,19.391,19.383,20.0]
[1688386716951,76.814,19.391,19.386,21.818]
[1688386721974,76.814,19.391,19.381,102.521]
[1688386722180,76.814,19.391,19.383,21.822]
[1688386726659,76.814,19.391,19.382,21.823]
[1688386726866,76.814,19.391,19.379,56.194]
[1688386727560,76.814,19.391,19.374,94.0078]
[1688386727761,76.814,19.391,19.381,21.824]
[1688386730473,76.814,19.391,19.38,21.825]
[1688386730670,76.814,19.391,19.379,21.827]
[1688386732490,76.814,19.391,19.374,150.2158]
[1688386733187,76.814,19.391,19.379,21.827]
[1688386735381,21.814,19.391,19.379,21.827]
[1688386735681,21.814,19.391,19.374,94.0078]
[1688386735887,55.0,19.39,19.377,21.829]
[1688386736084,180.489,19.387,19.374,94.0078]
[1688386736290,55.0,19.386,19.374,94.0078]
[1688386736467,180.522,19.383,19.369,21.838]
[1688386736782,180.56,19.379,19.37,30.0]
[1688386736965,55.0,19.378,19.37,30.0]
[1688386737289,21.831,19.376,19.37,30.0]
[1688386737484,21.831,19.376,19.369,21.838]
[1688386738374,21.831,19.376,19.369,78.061]
[1688386738580,21.831,19.376,19.369,21.838]
[1688386741977,55.0,19.375,19.368,21.839]
[1688386742190,21.834,19.373,19.368,21.839]
[1688386745470,21.831,19.376,19.368,21.839]
[1688386746974,55.0,19.375,19.368,21.839]
[1688386747269,21.834,19.373,19.368,21.839]
[1688386747779,21.834,19.373,19.361,94.2841]
[1688386747977,55.0,19.372,19.368,21.84]
[1688386748177,21.836,19.371,19.368,21.84]
[1688386748992,21.835,19.372,19.368,21.84]
[1688386749198,21.834,19.374,19.368,21.84]
[1688386754101,21.835,19.372,19.368,21.84]
[1688386754494,76.835,19.373,19.368,21.84]
[1688386756107,76.835,19.373,19.364,21.844]
[1688386756688,76.835,19.373,19.356,10.83719922]
[1688386756689,133.047,19.373,19.355,32.77806461]
[1688386756893,20.0,19.372,19.358,21.85]
[1688386757210,20.0,19.372,19.356,21.852]
[1688386757211,180.659,19.368,19.356,21.852]
[1688386757505,55.0,19.367,19.356,21.852]
[1688386757803,21.844,19.364,19.356,21.852]
[1688386758109,21.848,19.361,19.356,21.852]
[1688386759600,21.848,19.361,19.351,56.275]
[1688386759800,21.848,19.361,19.356,20.853]
[1688386760099,21.848,19.361,19.355,21.853]
[1688386760284,21.848,19.361,19.351,56.275]
[1688386760484,21.848,19.361,19.354,21.855]
[1688386760904,21.848,19.361,19.349,148.2888]
[1688386761087,21.848,19.361,19.353,21.856]
[1688386761600,21.847,19.362,19.353,21.856]
[1688386761820,21.846,19.363,19.353,21.856]
[1688386765392,78.087,19.363,19.353,21.856]
[1688386767797,21.849,19.36,19.353,21.856]
[1688386769799,55.0,19.359,19.353,21.856]
[1688386769998,21.852,19.358,19.353,21.856]
[1688386771608,21.851,19.358,19.349,56.281]
[1688386771814,21.851,19.358,19.345,144.2471]
[1688386772002,21.851,19.358,19.348,21.862]
[1688386773010,55.0,19.357,19.338,25.92569613]
[1688386773217,78.139,19.35,19.339,21.871]
[1688386773398,78.139,19.35,19.338,21.873]
[1688386773598,78.156,19.346,19.334,56.324]
[1688386773820,78.156,19.346,19.331,91.6414]
[1688386774025,55.0,19.345,19.335,21.876]
[1688386774206,21.869,19.342,19.335,21.876]
[1688386775222,78.171,19.342,19.33,56.335]
[1688386775517,21.869,19.342,19.335,16.876]
[1688386776314,124.598,19.342,19.333,21.879]
[1688386776507,21.873,19.339,19.326,102.811]
[1688386776704,21.872,19.34,19.333,21.879]
[1688386777813,45.61388138,19.357,19.333,32.71619922]
[1688386777814,102.681,19.352,19.333,32.71619922]
[1688386778011,21.867,19.345,19.334,55.0]
[1688386778210,21.867,19.345,19.337,21.874]
[1688386778714,56.277,19.351,19.337,21.874]
[1688386778899,91.3977,19.363,19.346,21.864]
[1688386779107,78.114,19.357,19.346,21.864]
[1688386779302,21.853,19.357,19.346,78.154]
[1688386779822,21.853,19.357,19.346,88.99119922]
[1688386780028,21.848,19.361,19.346,88.99119922]
[1688386780328,21.848,19.361,19.353,21.857]
[1688386780506,21.848,19.361,19.347,65.83719922]
[1688386780507,78.095,19.361,19.347,169.82419922]
[1688386780700,78.095,19.361,19.351,21.858]
[1688386781729,21.848,19.361,19.351,21.858]
[1688386782027,21.848,19.361,19.347,10.83719922]
[1688386782028,124.476,19.361,19.347,10.83719922]
[1688386782218,21.848,19.361,19.351,21.858]
[1688386782607,21.848,19.361,19.347,10.83719922]
[1688386782816,21.848,19.361,19.351,21.859]
[1688386783020,78.128,19.361,19.351,21.859]
[1688386783222,21.848,19.361,19.351,21.859]
[1688386783620,55.0,19.36,19.351,21.859]
[1688386783813,21.852,19.358,19.351,21.859]
[1688386784119,55.0,19.357,19.351,21.859]
[1688386784426,21.854,19.356,19.351,21.859]
[1688386784824,21.854,19.356,19.35,21.859]
[1688386785123,21.854,19.356,19.351,21.858]
[1688386785631,158.903,19.363,19.351,21.858]
[1688386785836,99.9225,19.371,19.352,20.0]
[1688386786011,21.841,19.367,19.357,21.851]
[1688386786525,21.841,19.368,19.357,21.851]
[1688386788031,55.0,19.367,19.357,21.851]
[1688386788209,21.841,19.368,19.357,21.851]
[1688386789618,21.843,19.366,19.357,21.851]
[1688386790632,55.0,19.365,19.357,21.851]
[1688386790839,21.846,19.363,19.357,21.851]
[1688386791014,55.0,19.362,19.357,21.851]
[1688386791214,21.846,19.363,19.357,21.851]
[1688386791836,56.23,19.367,19.357,21.851]
[1688386792133,21.844,19.364,19.357,21.851]
[1688386792516,55.0,19.363,19.357,21.851]
[1688386792711,76.846,19.363,19.357,21.851]
[1688386793632,76.846,19.363,19.351,56.275]
[1688386793930,78.102,19.359,19.352,21.857]
[1688386794122,78.102,19.359,19.351,21.858]
[1688386794326,21.853,19.356,19.351,21.858]
[1688386794914,76.855,19.355,19.351,21.858]
[1688386795121,76.855,19.355,19.35,21.859]
[1688386796414,55.0,19.355,19.35,21.859]
[1688386796620,21.854,19.355,19.35,21.859]
[1688386796815,76.856,19.354,19.35,21.859]
[1688386797020,21.856,19.354,19.35,21.859]
[1688386797220,21.856,19.354,19.349,21.86]
[1688386797420,21.858,19.352,19.349,21.86]
[1688386797830,21.858,19.353,19.349,21.86]
[1688386798622,21.858,19.353,19.348,21.862]
[1688386798938,21.858,19.353,19.347,21.862]
[1688386799238,55.0,19.352,19.348,21.862]
[1688386799433,21.859,19.351,19.348,21.862]
[1688386799633,21.859,19.351,19.347,21.863]
[1688386800144,21.859,19.351,19.342,56.3]
[1688386800321,21.863,19.348,19.344,21.866]
[1688386800518,21.863,19.348,19.338,159.06]
[1688386800738,21.863,19.348,19.342,21.869]
[1688386801335,21.863,19.348,19.341,21.869]
[1688386802222,55.0,19.352,19.341,21.869]
[1688386802425,21.86,19.351,19.341,21.869]
[1688386802744,31.66,19.36,19.341,21.869]
[1688386802745,21.854,19.356,19.342,20.0]
[1688386803047,150.2251,19.36,19.346,180.861]
[1688386803226,93.9751,19.36,19.346,180.861]
[1688386803635,21.869,19.361,19.346,180.861]
[1688386803839,94.6335,19.369,19.347,75.0]
[1688386804041,102.545,19.377,19.353,180.792]
[1688386804342,21.837,19.371,19.353,180.792]
[1688386804544,21.837,19.371,19.354,107.06639922]
[1688386804733,21.837,19.371,19.359,180.741]
[1688386807040,55.0,19.37,19.359,180.741]
[1688386807842,21.839,19.369,19.359,180.741]
[1688386808042,55.0,19.368,19.359,180.741]
[1688386808235,21.841,19.367,19.359,180.741]
[1688386808432,21.841,19.367,19.354,10.83719922]
[1688386808433,55.0,19.366,19.354,10.83719922]
[1688386808632,31.8,19.36,19.345,56.293]
[1688386808835,31.8,19.36,19.331,3.0]
[1688386808836,21.853,19.357,19.347,21.862]
[1688386809338,21.852,19.358,19.347,21.862]
[1688386810241,21.852,19.358,19.344,21.866]
[1688386810242,124.496,19.358,19.344,21.866]
[1688386810739,21.856,19.354,19.344,21.866]
[1688386813721,63.46,19.38,19.355,21.854]
[1688386813940,122.6567844,19.379,19.355,21.854]
[1688386814150,10.83719922,19.371,19.355,21.854]
[1688386814741,180.643,19.37,19.355,21.854]
[1688386815548,10.83719922,19.371,19.355,21.854]
[1688386815549,78.079,19.365,19.355,21.854]
[1688386816943,78.092,19.362,19.354,21.855]
[1688386817347,78.092,19.362,19.353,21.856]
[1688386818233,21.847,19.362,19.353,21.856]
[1688386829429,21.845,19.364,19.353,21.856]
[1688386829630,21.843,19.366,19.353,21.856]
[1688386830236,103.384308,19.374,19.353,21.856]
[1688386830538,56.183,19.383,19.353,21.856]
[1688386830539,26.68133531,19.395,19.361,3.0]
[1688386830731,52.1646,19.399,19.371,78.054]
[1688386830934,26.68133531,19.402,19.372,75.0]
[1688386831250,21.806,19.399,19.381,21.825]
[1688386831451,26.68133531,19.409,19.382,20.0]
[1688386831627,63.28,19.41,19.389,21.815]
[1688386831628,56.133,19.399,19.389,21.815]
[1688386832147,56.133,19.399,19.389,21.816]
[1688386832335,89.96133531,19.41,19.389,21.816]
[1688386832651,20.0,19.409,19.389,21.816]
[1688386832863,58.32133531,19.41,19.39,20.0]
[1688386833032,58.32133531,19.41,19.396,21.808]
[1688386833033,31.64,19.41,19.396,21.808]
[1688386833238,21.79,19.413,19.396,21.808]
[1688386833435,58.321335,19.411,19.396,21.808]
[1688386833658,63.3,19.42,19.396,124.251]
[1688386833659,31.66,19.42,19.396,124.251]
[1688386833842,21.776,19.425,19.4,31.82]
[1688386834146,21.776,19.425,19.392,402.3]
[1688386834147,31.82,19.42,19.395,56.147]
[1688386834442,63.64,19.42,19.404,21.798]
[1688386834629,31.82,19.42,19.404,21.798]
[1688386834829,20.0,19.419,19.404,21.798]
[1688386835324,77.837,19.425,19.405,20.0]
[1688386835325,21.779,19.423,19.405,20.0]
[1688386835531,21.782,19.42,19.41,21.792]
[1688386835928,53.312,19.42,19.398,56.138]
[1688386836134,85.132,19.42,19.393,56.151]
[1688386836340,21.79,19.412,19.399,21.804]
[1688386836546,20.0,19.419,19.399,21.804]
[1688386836725,55.0,19.418,19.399,21.804]
[1688386836933,21.789,19.414,19.399,21.804]
[1688386837128,55.0,19.413,19.399,21.804]
[1688386837529,20.0,19.417,19.399,21.804]
[1688386837731,75.0,19.419,19.399,21.804]
[1688386837933,21.786,19.416,19.399,21.804]
[1688386838134,21.792,19.411,19.399,21.804]
[1688386838344,31.8,19.41,19.399,21.804]
[1688386838544,21.795,19.408,19.399,21.804]
[1688386838943,55.0,19.407,19.399,21.804]
[1688386839348,55.0,19.408,19.399,21.804]
[1688386839954,55.0,19.409,19.399,21.804]
[1688386840130,76.793,19.41,19.399,21.804]
[1688386842049,20.0,19.419,19.399,21.804]
[1688386842250,21.793,19.41,19.399,21.804]
[1688386843148,21.793,19.41,19.399,21.805]
[1688386843350,21.797,19.407,19.399,21.805]
[1688386843550,21.793,19.414,19.399,21.805]
[1688386843551,55.0,19.406,19.399,21.805]
[1688386843945,21.79,19.413,19.399,21.805]
[1688386844346,21.793,19.41,19.399,21.805]
[1688386844550,55.0,19.409,19.399,21.805]
[1688386844753,76.794,19.409,19.399,21.805]
[1688386844946,55.0,19.409,19.399,21.805]
[1688386845145,20.0,19.419,19.399,21.805]
[1688386845541,55.0,19.417,19.399,21.805]
[1688386845851,21.783,19.419,19.405,21.798]
[1688386846545,21.783,19.42,19.405,21.798]
[1688386846749,55.0,19.419,19.405,21.798]
[1688386847055,20.0,19.428,19.405,21.798]
[1688386847258,87.71,19.43,19.405,21.798]
[1688386847259,20.0,19.429,19.405,21.798]
[1688386847450,56.123,19.428,19.405,21.798]
[1688386847651,21.776,19.425,19.405,21.798]
[1688386847954,21.783,19.419,19.405,21.798]
[1688386848453,20.0,19.424,19.405,21.798]
[1688386848656,184.00123058,19.436,19.41,31.58]
[1688386848852,21.776,19.425,19.417,21.784]
[1688386849159,21.768,19.432,19.417,21.784]
[1688386849371,20.0,19.439,19.417,21.784]
[1688386849568,21.77,19.43,19.417,21.784]
[1688386850059,21.767,19.433,19.417,21.784]
[1688386850237,21.766,19.434,19.417,21.784]
[1688386852447,55.0,19.433,19.417,21.784]
[1688386852645,21.772,19.429,19.417,21.784]
[1688386852843,55.0,19.428,19.417,21.784]
[1688386854359,76.773,19.428,19.417,21.784]
[1688386855649,132.826,19.428,19.403,102.404]
[1688386855851,20.0,19.427,19.41,21.792]
[1688386856065,21.779,19.422,19.41,21.792]
[1688386856269,55.0,19.421,19.41,21.792]
[1688386856467,21.784,19.418,19.41,21.792]
[1688386856770,55.0,19.417,19.41,21.792]
[1688386857265,76.785,19.417,19.41,21.792]
[1688386858656,76.785,19.417,19.393,138.17762432]
[1688386858858,76.785,19.417,19.4,21.803]
[1688386858859,20.0,19.416,19.4,21.803]
[1688386859061,21.791,19.412,19.4,21.803]
[1688386859471,55.0,19.411,19.4,21.803]
[1688386859773,21.795,19.408,19.4,21.803]
[1688386859959,55.0,19.407,19.399,21.804]
[1688386860160,21.798,19.405,19.399,21.804]
[1688386860952,21.796,19.408,19.399,21.804]
[1688386862079,55.0,19.407,19.399,21.804]
[1688386862277,21.798,19.405,19.399,21.804]
[1688386862577,55.0,19.407,19.399,21.804]
[1688386862758,56.097,19.413,19.399,21.804]
[1688386862959,55.0,19.412,19.399,21.804]
[1688386863270,21.792,19.411,19.399,21.804]
[1688386863455,21.796,19.407,19.399,21.804]
[1688386864158,102.337,19.417,19.399,21.804]
[1688386864365,21.795,19.408,19.399,21.804]
[1688386865376,55.0,19.407,19.399,21.804]
[1688386865576,21.798,19.406,19.399,21.804]
[1688386865879,55.0,19.407,19.399,21.804]
[1688386866058,21.794,19.409,19.399,77.94]
[1688386866254,21.794,19.409,19.395,96.0005]
[1688386866472,55.0,19.408,19.395,117.8085]
[1688386866771,77.921,19.405,19.393,21.811]
[1688386866973,77.941,19.4,19.386,56.174]
[1688386867288,77.941,19.4,19.388,21.817]
[1688386867461,180.41,19.395,19.383,21.822]
[1688386867980,77.976,19.391,19.381,21.824]
[1688386868161,21.818,19.388,19.381,21.824]
[1688386869177,21.818,19.388,19.38,21.826]
[1688386869358,55.0,19.387,19.371,10.83719922]
[1688386869556,21.824,19.383,19.375,21.831]
[1688386870263,78.007,19.383,19.374,21.832]
[1688386870475,78.007,19.383,19.371,21.835]
[1688386870476,55.0,19.382,19.371,21.835]
[1688386870770,21.828,19.379,19.37,21.837]
[1688386870979,21.832,19.375,19.368,21.839]
[1688386871165,21.832,19.375,19.361,84.7845]
[1688386871166,78.038,19.375,19.361,84.7845]
[1688386947842,21.817,19.388,19.38,21.825]
[1688386948440,55.0,19.387,19.378,112.2573]
[1688386948749,21.82,19.386,19.379,21.826]
[1688386949034,21.82,19.386,19.378,90.4293]
[1688386949438,21.82,19.386,19.374,10.83719922]
[1688386949747,21.823,19.384,19.376,21.83]
[1688386951332,55.0,19.383,19.376,21.83]
[1688386951526,21.825,19.382,19.376,21.83]
[1688386952622,55.0,19.383,19.376,32.66719922]
[1688386952826,21.819,19.387,19.376,21.83]
[1688386953025,55.0,19.386,19.379,21.826]
[1688386953939,21.819,19.387,19.379,32.66319922]
[1688386954836,102.454,19.394,19.379,32.66319922]
[1688386954837,21.822,19.384,19.379,32.66319922]
[1688386955044,30.430248,19.386,19.379,32.66319922]
[1688386955234,21.819,19.387,19.379,32.66319922]
[1688386957342,21.818,19.388,19.379,32.66319922]
[1688386957747,21.818,19.388,19.38,10.83719922]
[1688386957951,56.153,19.394,19.382,21.823]
[1688386958139,56.126,19.403,19.382,21.823]
[1688386958452,56.126,19.403,19.383,30.83719922]
[1688386958453,21.805,19.4,19.383,30.83719922]
[1688386958637,21.805,19.4,19.388,21.817]
[1688386958949,21.805,19.4,19.388,32.65419922]
[1688386959246,21.805,19.4,19.389,10.83719922]
[1688386959549,56.125,19.403,19.393,21.811]
[1688386960544,21.804,19.4,19.392,21.812]
[1688386961842,21.804,19.4,19.391,21.813]
[1688386962647,21.804,19.4,19.387,10.83719922]
[1688386962840,21.81,19.395,19.387,21.818]
[1688386963143,21.812,19.393,19.387,21.818]
[1688386963447,76.811,19.394,19.387,21.818]
[1688386964844,56.134,19.4,19.387,32.65519922]
[1688386965045,55.0,19.399,19.387,32.65519922]
[1688386965344,21.807,19.398,19.391,21.813]
[1688386965935,56.122,19.404,19.391,21.813]
[1688386966331,21.806,19.399,19.383,119.2952]
[1688386966533,21.806,19.399,19.391,21.813]
[1688386967434,55.0,19.398,19.391,21.813]
[1688386967634,21.808,19.396,19.391,21.813]
[1688386967836,55.0,19.395,19.391,21.813]
[1688386968047,21.811,19.394,19.39,21.814]
[1688386968651,21.81,19.395,19.39,21.814]
[1688386969646,21.809,19.396,19.39,21.814]
[1688386970234,21.813,19.392,19.386,21.818]
[1688386970435,55.0,19.395,19.386,21.818]
[1688386970634,21.81,19.394,19.386,21.818]
[1688386970850,55.0,19.393,19.386,21.818]
[1688386971444,76.812,19.393,19.386,21.818]
[1688386972548,21.812,19.393,19.386,21.818]
[1688386973256,55.0,19.392,19.386,21.818]
[1688386973460,76.813,19.392,19.386,21.818]
[1688386975854,55.0,19.392,19.386,21.818]
[1688386976449,76.813,19.392,19.386,21.818]
[1688386976651,55.0,19.392,19.386,21.818]
[1688386978057,55.0,19.393,19.386,21.818]
[1688386978544,55.0,19.394,19.386,21.818]
[1688386979468,76.81,19.394,19.386,21.818]
[1688386981250,56.135,19.4,19.386,21.818]
[1688386982645,55.0,19.399,19.386,21.818]
[1688386982857,21.807,19.398,19.386,21.818]
[1688386983066,21.809,19.396,19.386,21.818]
[1688386983238,55.0,19.397,19.386,21.818]
[1688386983744,56.122,19.405,19.387,10.83719922]
[1688386983950,102.367,19.411,19.392,180.43]
[1688386984265,102.367,19.411,19.393,10.83719922]
[1688386984471,21.798,19.406,19.398,77.943]
[1688386984955,21.798,19.406,19.398,21.805]
[1688386985157,21.799,19.404,19.398,21.805]
[1688386985357,55.0,19.405,19.398,21.805]
[1688386985358,76.801,19.403,19.398,21.805]
[1688386985566,21.801,19.403,19.398,21.805]
[1688386986774,56.109,19.409,19.398,21.805]